bitfinex-derivatives/quotes_BNBF0:USTF0_20250511
["timestamp","ask_amount","ask_price","bid_price","bid_amount"]
[1747000610034,0.26696636,651.88,650.15,0.30762131]
[1747000610241,0.30680022,651.89,650.15,0.30762131]
[1747000610440,0.26700938,651.87,650.16,0.26700938]
[1747000610733,0.30681905,651.85,650.16,0.26700938]
[1747000613142,0.30681905,651.85,650.15,0.30762131]
[1747000613442,0.26701143,651.84,650.16,0.26701143]
[1747000613635,0.30683317,651.82,650.16,0.26701143]
[1747000616141,0.30683317,651.82,650.15,0.30762131]
[1747000616441,0.2670145,651.81,650.16,0.2670145]
[1747000616641,0.30684729,651.79,650.16,0.2670145]
[1747000617039,0.30684729,651.79,650.21,0.96753523]
[1747000622942,0.30684729,651.79,650.2,0.96753523]
[1747000624541,0.30684729,651.79,650.19,0.26701348]
[1747000625145,0.30684729,651.79,650.15,0.30762131]
[1747000625446,0.30684729,651.79,650.19,0.26702065]
[1747000628149,0.30684729,651.79,650.15,0.30762131]
[1747000628350,0.30684729,651.79,650.19,0.26702065]
[1747000631149,0.30684729,651.79,650.15,0.30762131]
[1747000631350,0.30684729,651.79,650.19,0.26702065]
[1747000634151,0.30684729,651.79,650.15,0.30762131]
[1747000634346,0.30684729,651.79,650.19,0.26702065]
[1747000636357,0.30684729,651.79,650.21,0.96753523]
[1747000639257,0.30684729,651.79,650.2,0.2670145]
[1747000640158,0.30684729,651.79,650.19,0.96753523]
[1747000640352,0.26702679,651.78,650.2,0.26702679]
[1747000640551,0.30686142,651.76,650.2,0.26702679]
[1747000641659,0.30686142,651.76,650.27,0.96753523]
[1747000643463,0.26702065,651.75,650.27,0.96753523]
[1747000643760,0.30687554,651.73,650.27,0.96753523]
[1747000644854,0.30687554,651.73,650.23,0.26702065]
[1747000644855,0.30687554,651.73,650.26,0.96753523]
[1747000649360,0.30687554,651.73,650.15,0.30762131]
[1747000649361,0.30687554,651.73,650.22,0.96753523]
[1747000650564,0.30687554,651.73,650.23,0.26700733]
[1747000652166,0.30687554,651.73,650.15,0.30762131]
[1747000652467,0.30687554,651.73,650.23,0.26703602]
[1747000652770,0.30687554,651.73,650.15,0.30762131]
[1747000653567,0.30687554,651.73,650.16,0.26703704]
[1747000655172,0.30687554,651.73,650.15,0.30762131]
[1747000655365,0.30687554,651.73,650.16,0.26703602]
[1747000658175,0.30687554,651.73,650.15,0.30762131]
[1747000658475,0.30687554,651.73,650.16,0.26703602]
[1747000661076,0.30687554,651.73,650.15,0.30762131]
[1747000662577,0.30687554,651.73,650.16,0.26700119]
[1747000664178,0.30687554,651.73,650.15,0.30762131]
[1747000664379,0.30687554,651.73,650.16,0.26702679]
[1747000667181,0.30687554,651.73,650.15,1.27515654]
[1747000668583,0.30687554,651.73,650.16,0.26700938]
[1747000668781,0.30687554,651.73,650.2,0.96753523]
[1747000673184,0.30687554,651.73,650.21,0.96753523]
[1747000675385,0.30687554,651.73,650.22,0.96753523]
[1747000678594,0.30687554,651.73,650.21,0.96753523]
[1747000680995,0.30687554,651.73,650.23,0.96753523]
[1747000682798,0.30687554,651.73,650.21,0.26702167]
[1747000684798,0.30687554,651.73,650.22,0.96753523]
[1747000686796,0.30687554,651.73,650.21,0.26702475]
[1747000688194,0.30687554,651.73,650.15,0.30762131]
[1747000688397,0.30687554,651.73,650.21,0.26703397]
[1747000691098,0.30687554,651.73,650.1,0.96753523]
[1747000691399,0.30687554,651.73,650.21,0.26706676]
[1747000691593,0.26702679,651.72,650.21,0.26706676]
[1747000691795,0.26702679,651.72,650.07,0.96753523]
[1747000692601,0.26702679,651.72,650.08,0.2670729]
[1747000694098,0.26702679,651.72,650.07,0.96753523]
[1747000694304,0.30688967,651.7,649.91,0.96753523]
[1747000694499,0.30688967,651.7,650.08,0.2670852]
[1747000694698,0.30688967,651.7,649.91,0.96753523]
[1747000695600,0.30688967,651.7,649.92,0.26710365]
[1747000695805,0.30688967,651.7,649.93,0.96753523]
[1747000697406,0.2671016,651.69,649.93,0.96753523]
[1747000697605,0.3069038,651.67,649.93,0.96753523]
[1747000698309,0.3069038,651.67,650.0,0.96753523]
[1747000701110,0.3069038,651.67,649.93,0.96753523]
[1747000701511,0.26707598,651.66,649.93,0.96753523]
[1747000701810,0.30691793,651.64,649.93,0.96753523]
[1747000703512,0.30691793,651.64,649.91,0.96753523]
[1747000703711,0.26710673,651.63,649.92,0.26710673]
[1747000704114,0.30693206,651.61,649.92,0.26710673]
[1747000706108,0.30693206,651.61,649.9,0.96753523]
[1747000706513,0.26711288,651.6,649.92,0.26711288]
[1747000706713,0.30694619,651.58,649.92,0.26711288]
[1747000707414,0.30694619,651.58,649.92,1.23464811]
[1747000709215,0.30694619,651.58,649.92,0.96753523]
[1747000709416,0.2671139,651.57,649.92,1.23464913]
[1747000709712,0.30696032,651.55,649.92,1.23464913]
[1747000710016,0.30696032,651.55,649.92,0.2671139]
[1747000712216,0.30696032,651.55,649.84,0.96753523]
[1747000712817,0.30696032,651.55,649.88,0.96753523]
[1747000713416,0.26708315,651.54,649.89,0.26708315]
[1747000713617,0.30697445,651.52,649.89,0.26708315]
[1747000715113,0.30697445,651.52,649.87,0.96753523]
[1747000716418,0.57407093,651.52,649.88,0.26709648]
[1747000718119,0.30697445,651.52,649.85,0.96753523]
[1747000718515,0.57411398,651.52,649.88,0.26713953]
[1747000721218,0.30697445,651.52,649.87,0.96753523]
[1747000721520,0.57411193,651.52,649.88,0.26713748]
[1747000724220,0.30697445,651.52,649.85,0.96753523]
[1747000724418,0.57411398,651.52,649.88,0.26713953]
[1747000727227,0.30697445,651.52,649.87,0.96753523]
[1747000727420,0.57411193,651.52,649.88,0.26713748]
[1747000727625,0.57411193,651.52,649.9,0.96753523]
[1747000729231,0.57411193,651.52,649.88,1.23467271]
[1747000733131,0.30697445,651.52,649.88,0.96753523]
[1747000733432,0.57411091,651.52,649.88,1.23467169]
[1747000733631,0.57411091,651.52,649.88,0.26713646]
[1747000736334,0.30697445,651.52,649.85,0.96753523]
[1747000737433,0.30697445,651.52,649.86,0.26710058]
[1747000737638,0.57407503,651.52,649.86,0.26710058]
[1747000739130,0.57407503,651.52,649.85,0.96753523]
[1747000739340,0.30697445,651.52,649.85,0.96753523]
[1747000739540,0.57411398,651.52,649.86,0.26713953]
[1747000739836,0.57411398,651.52,649.87,0.96753523]
[1747000742143,0.30697445,651.52,649.87,0.96753523]
[1747000743544,0.57407093,651.52,649.87,0.96753523]
[1747000745146,0.30697445,651.52,649.87,0.96753523]
[1747000745445,0.57411193,651.52,649.87,0.96753523]
[1747000745645,0.57411193,651.52,649.86,0.26713748]
[1747000745646,0.57411193,651.52,649.91,0.96753523]
[1747000748147,0.30697445,651.52,649.94,0.96753523]
[1747000750143,0.30697445,651.52,649.99,0.96753523]
[1747000752749,0.30697445,651.52,650.01,0.96753523]
[1747000754849,0.30697445,651.52,649.91,0.96753523]
[1747000755450,0.30697445,651.52,649.92,0.26708418]
[1747000757052,0.30697445,651.52,649.91,0.96753523]
[1747000757652,0.30697445,651.52,649.92,0.30773018]
[1747000757852,0.30697445,651.52,649.92,0.5747621]
[1747000758351,0.30697445,651.52,649.94,0.96753523]
[1747000761254,0.30697445,651.52,649.96,0.96753523]
[1747000763455,0.30697445,651.52,649.92,1.27526541]
[1747000763655,0.30697445,651.52,649.94,0.26698992]
[1747000766158,0.30697445,651.52,649.92,0.30773018]
[1747000766453,0.30697445,651.52,649.94,0.2670104]
[1747000772262,0.30697445,651.52,649.92,1.27526541]
[1747000772560,0.30697445,651.52,649.94,0.26703294]
[1747000775260,0.30697445,651.52,649.92,1.27526541]
[1747000775460,0.30697445,651.52,649.94,0.26704011]
[1747000778158,0.30697445,651.52,649.93,0.96753523]
[1747000778556,0.30697445,651.52,649.94,0.26703909]
[1747000780064,0.30697445,651.52,649.98,0.96753523]
[1747000782666,0.30697445,651.52,649.96,0.26698889]
[1747000782667,0.30697445,651.52,650.0,0.96753523]
[1747000785063,0.30697445,651.52,650.04,0.96753523]
[1747000787269,0.30697445,651.52,649.92,0.30773018]
[1747000787270,0.30697445,651.52,650.08,0.96753523]
[1747000789873,0.30697445,651.52,650.13,0.96753523]
[1747000791774,0.30697445,651.52,650.16,0.96753523]
[1747000793478,0.30697445,651.52,650.28,0.96753523]
[1747000795380,0.30697445,651.52,650.27,0.96753523]
[1747000799385,0.30697445,651.52,650.26,0.96753523]
[1747000801985,0.30697445,651.52,650.29,0.96753523]
[1747000806887,0.30697445,651.52,650.22,0.26692336]
[1747000806888,0.30697445,651.52,650.37,0.96753523]
[1747000809684,0.30697445,651.52,650.35,0.96753523]
[1747000812289,0.30697445,651.52,650.26,0.96753523]
[1747000812491,0.30697445,651.52,650.27,0.26684866]
[1747000813090,0.30697445,651.52,650.28,0.30755982]
[1747000814093,0.26684866,652.19,650.28,0.30755982]
[1747000814294,0.3066685,652.17,650.28,0.30755982]
[1747000819594,0.3066685,652.17,650.29,0.96753523]
[1747000819800,0.3066685,652.17,650.3,0.30755036]
[1747000825503,0.3066685,652.17,650.31,0.96753523]
[1747000827906,0.3066685,652.17,650.3,0.30755036]
[1747000830807,0.3066685,652.17,650.34,0.96753523]
[1747000832509,0.26688652,652.16,650.34,0.96753523]
[1747000833108,0.30668261,652.14,650.34,0.96753523]
[1747000834212,0.30668261,652.14,650.31,0.26688652]
[1747000834410,0.30668261,652.14,650.31,0.57443215]
[1747000835213,0.30668261,652.14,650.31,0.30754563]
[1747000835611,0.57358243,652.14,650.31,0.57444545]
[1747000837108,0.57358243,652.14,650.35,0.96753523]
[1747000838216,0.30668261,652.14,650.35,0.96753523]
[1747000838414,0.57358038,652.14,650.35,0.96753523]
[1747000839410,0.57358038,652.14,650.4,0.96753523]
[1747000841218,0.30668261,652.14,650.4,0.96753523]
[1747000841413,0.30668261,652.14,650.45,0.96753523]
[1747000843919,0.30668261,652.14,650.49,0.96753523]
[1747000846417,0.30668261,652.14,650.42,1.23438798]
[1747000847220,0.30668261,652.14,650.42,0.96753523]
[1747000848421,0.30668261,652.14,650.42,1.23439002]
[1747000848922,0.30668261,652.14,650.68,0.96753523]
[1747000851023,0.30668261,652.14,650.67,0.96753523]
[1747000853524,0.30668261,652.14,650.58,1.23436445]
[1747000855123,0.30668261,652.14,650.58,0.26682922]
[1747000856224,0.30668261,652.14,650.56,0.96753523]
[1747000856523,0.30668261,652.14,650.58,0.26684047]
[1747000859224,0.30668261,652.14,650.52,0.96753523]
[1747000859422,0.30668261,652.14,650.48,0.96753523]
[1747000859619,0.30668261,652.14,650.58,0.26685684]
[1747000859822,0.30668261,652.14,650.48,0.96753523]
[1747000860524,0.30668261,652.14,650.49,0.26686298]
[1747000862226,0.30668261,652.14,650.41,0.96753523]
[1747000863532,0.30668261,652.14,650.42,0.26687014]
[1747000866331,0.30668261,652.14,650.41,0.96753523]
[1747000866531,0.30668261,652.14,650.35,0.96753523]
[1747000866732,0.30668261,652.14,650.42,0.26687014]
[1747000871336,0.30668261,652.14,650.31,1.27508086]
[1747000872032,0.30668261,652.14,650.36,0.96753523]
[1747000872537,0.30668261,652.14,650.37,0.26687526]
[1747000874240,0.30668261,652.14,650.36,0.96753523]
[1747000875440,0.30668261,652.14,650.37,0.26687526]
[1747000876438,0.30668261,652.14,650.39,0.96753523]
[1747000879343,0.30668261,652.14,650.44,0.96753523]
[1747000881746,0.30668261,652.14,650.47,0.96753523]
[1747000884439,0.30668261,652.14,650.48,0.96753523]
[1747000886141,0.30668261,652.14,650.43,0.2668681]
[1747000886142,0.30668261,652.14,650.45,0.96753523]
[1747000886546,0.30668261,652.14,650.45,1.2344023]
[1747000888548,0.30668261,652.14,650.45,0.26686707]
[1747000891351,0.30668261,652.14,650.64,0.96753523]
[1747000893357,0.30668261,652.14,650.58,0.96753523]
[1747000895353,0.30668261,652.14,650.73,0.96753523]
[1747000897655,0.30668261,652.14,650.71,0.96753523]
[1747000900761,0.30668261,652.14,650.66,0.26675967]
[1747000904262,0.30668261,652.14,650.57,0.96753523]
[1747000904562,0.30668261,652.14,650.66,0.26675967]
[1747000904862,0.30668261,652.14,650.57,0.96753523]
[1747000905767,0.26675967,652.7,650.59,0.96753523]
[1747000907865,0.26675967,652.7,650.58,0.26679035]
[1747000910364,1.9816364,653.59,650.51,0.96753523]
[1747000910662,0.28139748,653.58,650.51,0.96753523]
[1747000911566,0.26663295,653.57,650.52,0.26663295]
[1747000911964,0.28139748,653.56,650.52,0.26663295]
[1747000913269,0.28139748,653.56,650.43,0.96753523]
[1747000913463,0.28139748,653.71,650.43,0.96753523]
[1747000914069,0.28139748,653.71,650.57,0.30742272]
[1747000914570,0.30601628,653.56,650.57,0.30742272]
[1747000915071,0.28139748,653.55,650.57,0.30742272]
[1747000916672,0.26663908,653.54,650.57,0.30742272]
[1747000917072,0.28139748,653.53,650.57,0.30742272]
[1747000917666,0.26663908,653.54,650.57,0.30742272]
[1747000917971,0.28141128,653.53,650.57,0.30742272]
[1747000921175,0.26663908,653.54,650.57,0.30742272]
[1747000922578,0.30609121,653.4,650.57,0.30742272]
[1747000923076,0.28141115,653.39,650.57,0.30742272]
[1747000923480,2.26304755,653.39,650.57,0.30742272]
[1747000924375,0.28141115,653.38,650.57,0.30742272]
[1747000925681,1.9816364,653.27,650.57,1.27495795]
[1747000925882,0.28141115,653.26,650.57,1.27495795]
[1747000926882,0.26666564,653.25,650.57,1.27495795]
[1747000927283,0.28141115,653.24,650.57,1.27495795]
[1747000927679,1.9816364,652.89,650.79,0.96753523]
[1747000929585,0.26668199,652.88,650.79,0.96753523]
[1747000929786,0.26668199,652.88,650.65,0.26668199]
[1747000929787,1.9816364,652.85,650.83,0.96753523]
[1747000931687,0.26668199,652.84,650.83,0.96753523]
[1747000932989,0.26668199,652.84,650.72,0.26668199]
[1747000933387,0.26668199,652.84,650.74,0.30734241]
[1747000934289,1.9816364,653.52,650.74,0.30734241]
[1747000934588,0.26663704,652.83,650.74,0.30734241]
[1747000934885,1.9816364,653.52,650.74,0.30734241]
[1747000935389,1.9816364,653.55,650.74,0.30734241]
[1747000935592,0.26662376,653.39,650.74,0.30734241]
[1747000940397,0.26662376,653.39,650.9,0.96753523]
[1747000941995,0.26662376,653.39,650.99,0.96753523]
[1747000943296,1.9816364,653.7,650.99,0.96753523]
[1747000943791,0.26651452,653.38,650.99,0.96753523]
[1747000944691,0.26651452,653.38,651.18,0.96753523]
[1747000946292,1.9816364,653.71,651.18,0.96753523]
[1747000946497,0.26646146,653.37,651.18,0.96753523]
[1747000947196,0.26646146,653.37,650.97,0.26646146]
[1747000949299,0.67054408,655.36,650.49,0.96753523]
[1747000949594,0.67054408,655.36,650.75,1.42315138]
[1747000949799,0.26633197,653.39,650.75,1.42315138]
[1747000950098,0.26633197,653.39,650.76,1.15681941]
[1747000950803,0.26633197,653.39,650.77,1.15681941]
[1747000951299,0.26633197,653.39,650.78,1.15681941]
[1747000951800,0.26633197,653.39,650.79,1.15681941]
[1747000952301,0.67054408,655.16,650.79,1.15681941]
[1747000952501,0.67054408,655.16,650.8,1.15681941]
[1747000952697,0.26632177,653.39,650.8,1.15681941]
[1747000952999,0.26632177,653.39,650.81,1.15681941]
[1747000953396,0.26632177,653.39,650.82,1.15681941]
[1747000954000,0.26632177,653.39,650.83,1.15681941]
[1747000954602,0.26632177,653.39,650.77,0.26632177]
[1747000955100,0.26632177,653.39,650.9,0.30726686]
[1747000955302,0.670557,655.22,650.9,0.30726686]
[1747000955503,1.9816364,654.96,650.9,0.30726686]
[1747000955698,0.26652983,653.38,650.9,0.30726686]
[1747000961313,0.670557,654.39,650.9,0.30726686]
[1747000961613,0.26655943,653.37,650.9,0.30726686]
[1747000961815,0.30611463,653.35,650.9,0.30726686]
[1747000964617,0.26655943,653.34,650.9,0.30726686]
[1747000965015,0.30612869,653.32,650.9,0.30726686]
[1747000977523,0.26662274,653.31,650.9,0.30726686]
[1747000977827,0.30618962,653.19,650.9,0.30726686]
[1747000982935,0.26669119,653.18,650.9,0.30726686]
[1747000983933,0.28145232,653.17,650.9,0.30726686]
[1747000984431,0.30625057,653.06,650.9,0.30726686]
[1747000984732,0.28145232,653.05,650.9,0.30726686]
[1747000984935,0.30630216,652.95,650.9,0.30726686]
[1747000985633,0.26669017,652.94,650.9,0.30726686]
[1747000985829,0.30635377,652.84,650.9,0.30726686]
[1747000988638,0.26672798,652.83,650.9,0.30726686]
[1747000988939,0.30636785,652.81,650.9,0.30726686]
[1747000992942,0.26672083,652.8,650.9,0.30726686]
[1747000993142,0.30638193,652.78,650.9,0.30726686]
[1747000995547,0.26679546,652.77,650.9,0.30726686]
[1747000995740,0.30639601,652.75,650.9,0.30726686]
[1747000998546,0.26679546,652.74,650.9,0.30726686]
[1747000998849,0.30641009,652.72,650.9,0.30726686]
[1747001000647,0.28161337,652.71,650.9,0.30726686]
[1747001001548,0.26683638,652.7,650.9,0.30726686]
[1747001001849,0.28161337,652.69,650.9,0.30726686]
[1747001004451,0.26683638,652.7,650.9,0.30726686]
[1747001009355,0.30641009,652.72,650.9,0.30726686]
[1747001009757,0.26678319,652.69,650.9,0.30726686]
[1747001010558,0.28159695,652.68,650.9,0.30726686]
[1747001012666,0.26681694,652.67,650.9,0.30726686]
[1747001013258,1.9816364,652.61,650.9,0.30726686]
[1747001013654,0.28159695,652.6,650.9,0.30726686]
[1747001014257,1.9816364,652.61,650.9,0.30726686]
[1747001014461,0.28167208,652.6,650.9,0.30726686]
[1747001015861,0.28167208,652.66,650.9,0.30726686]
[1747001016859,0.28167208,652.65,650.9,0.30726686]
[1747001017258,0.28167208,652.64,650.9,0.30726686]
[1747001017558,0.28167208,652.63,650.9,0.30726686]
[1747001017859,0.28167208,652.62,650.9,0.30726686]
[1747001018254,0.28167208,652.61,650.9,0.30726686]
[1747001018460,2.26330848,652.61,650.9,0.30726686]
[1747001018658,0.28167208,652.6,650.9,0.30726686]
[1747001020668,1.9816364,652.53,650.9,0.30726686]
[1747001021556,0.54859749,652.52,650.9,0.30726686]
[1747001022259,0.28167208,652.51,650.9,0.30726686]
[1747001024867,0.28167208,652.71,650.9,0.30726686]
[1747001025568,0.26693667,652.7,650.9,0.30726686]
[1747001025765,0.28167208,652.69,650.9,0.30726686]
[1747001027165,0.28167208,652.68,650.9,0.30726686]
[1747001027466,0.28167208,652.67,650.9,0.30726686]
[1747001027669,0.28167208,652.66,650.9,0.30726686]
[1747001027971,0.28167208,652.65,650.9,0.30726686]
[1747001028270,0.28167208,652.64,650.9,0.30726686]
[1747001028471,0.28167208,652.63,650.9,0.30726686]
[1747001028771,0.28167208,652.62,650.9,0.30726686]
[1747001028972,0.28167208,652.61,650.9,0.09170629]
[1747001029166,0.28167208,652.6,650.9,0.09170629]
[1747001029567,0.26693667,652.7,650.9,0.09170629]
[1747001029568,0.28167208,652.59,650.9,0.09170629]
[1747001029774,0.28167208,652.58,650.9,0.09170629]
[1747001029967,0.28167208,652.57,650.9,0.09170629]
[1747001030173,0.28167208,652.56,650.9,0.09170629]
[1747001030471,0.28167208,652.55,650.9,0.09170629]
[1747001030672,0.28167208,652.54,650.9,0.09170629]
[1747001030873,0.28167208,652.53,650.9,0.09170629]
[1747001031172,0.28167208,652.52,650.9,0.09170629]
[1747001031372,0.28167208,652.51,650.9,0.09170629]
[1747001031574,0.28167208,652.5,650.9,0.09170629]
[1747001031873,1.9816364,652.52,650.9,0.09170629]
[1747001032176,0.95380437,652.51,650.9,0.09170629]
[1747001032374,0.28190292,652.5,650.9,0.09170629]
[1747001032674,0.28190292,652.49,650.9,0.09170629]
[1747001032872,0.28190292,652.48,650.9,0.09170629]
[1747001033073,0.28190292,652.47,650.9,0.09170629]
[1747001033270,0.28190292,652.46,650.9,0.09170629]
[1747001033574,0.28190292,652.5,650.9,0.09170629]
[1747001033875,0.28190292,652.49,650.9,0.09170629]
[1747001034076,0.28190292,652.48,650.9,0.09170629]
[1747001034271,0.28190292,652.47,650.9,0.09170629]
[1747001034476,0.28190292,652.46,650.9,0.09170629]
[1747001034777,0.28190292,652.45,650.9,0.09170629]
[1747001035077,0.28190292,652.44,650.9,0.09170629]
[1747001035285,0.28190292,652.43,650.9,0.09170629]
[1747001035484,0.28190292,652.42,650.9,0.09170629]
[1747001035787,0.28190292,652.41,650.9,0.01200849]
[1747001035986,0.28190292,652.4,650.9,0.01200849]
[1747001036179,0.28190292,652.51,650.9,0.01200849]
[1747001036481,0.26705548,652.39,650.9,0.01200849]
[1747001036684,0.28190292,652.38,650.9,0.01200849]
[1747001037186,0.28190292,652.51,650.9,0.01200849]
[1747001037387,0.28190292,652.37,650.9,0.01200849]
[1747001037686,0.28190292,652.51,650.9,0.01200849]
[1747001037886,0.26705548,652.36,650.9,0.01200849]
[1747001038088,0.28190292,652.51,650.9,0.01200849]
[1747001038690,0.28190292,652.5,650.9,0.01200849]
[1747001038989,0.28190292,652.49,650.9,0.01200849]
[1747001039189,0.28190292,652.49,650.9,0.00366566]
[1747001039387,0.28190292,652.48,650.9,0.00366566]
[1747001039588,0.28190292,652.47,650.9,0.00366566]
[1747001039888,0.28190292,652.49,650.9,0.00366566]
[1747001040191,0.28190292,652.48,650.9,0.00366566]
[1747001040490,0.28190292,652.47,650.9,0.00366566]
[1747001040990,0.28190292,652.49,650.9,0.00366566]
[1747001041187,0.28190292,652.46,650.9,0.00366566]
[1747001041492,0.28190292,652.49,650.9,0.00366566]
[1747001041793,0.28190292,652.48,650.9,0.00366566]
[1747001042091,0.28190292,652.47,650.9,0.00366566]
[1747001042489,0.54914298,652.46,650.9,0.00366566]
[1747001043093,0.28190292,652.45,650.9,0.00366566]
[1747001043493,0.28190292,652.44,650.9,0.00366566]
[1747001043799,0.28190292,652.43,650.9,0.00366566]
[1747001044293,0.28190292,652.42,650.9,0.00366566]
[1747001044696,0.28190292,652.41,650.9,0.00366566]
[1747001044993,0.28190292,652.45,650.9,0.00366566]
[1747001045195,0.28190292,652.44,650.9,0.00366566]
[1747001045495,0.54898197,652.44,650.9,0.00366566]
[1747001045795,0.28190292,652.43,650.9,0.00366566]
[1747001046194,0.28190292,652.42,650.9,0.00366566]
[1747001046494,0.26707905,652.44,650.9,0.00366566]
[1747001046495,0.28190292,652.41,650.9,0.00366566]
[1747001046795,0.28190292,652.4,650.9,0.00366566]
[1747001046997,1.9816364,652.37,650.9,0.00366566]
[1747001047496,0.95380437,652.36,650.9,0.00366566]
[1747001047795,0.28190292,652.35,650.9,0.00366566]
[1747001048195,0.28190292,652.34,650.9,0.00366566]
[1747001048596,0.54900042,652.33,650.9,0.00366566]
[1747001048898,0.28190292,652.32,650.9,0.00366566]
[1747001049097,0.28190292,652.32,650.2,0.561]
[1747001049300,1.9816364,652.27,650.2,0.561]
[1747001049599,0.28190292,652.26,650.2,0.561]
[1747001049899,0.28190292,652.25,650.2,0.561]
[1747001050104,0.28190292,652.24,650.2,0.561]
[1747001050497,0.28190292,652.23,650.2,0.561]
[1747001050796,0.28190292,652.22,650.2,0.561]
[1747001051098,0.28190292,652.25,650.2,0.561]
[1747001051500,0.28190292,652.24,650.2,0.561]
[1747001051700,1.9816364,652.18,650.2,0.561]
[1747001051900,0.28190292,652.17,650.2,0.561]
[1747001052200,0.28190292,652.16,650.2,0.561]
[1747001052500,0.28190292,652.15,650.2,0.561]
[1747001052800,0.28190292,652.14,650.2,0.561]
[1747001053100,0.28190292,652.13,650.2,0.561]
[1747001053502,0.28190292,652.12,650.2,0.561]
[1747001053800,0.28190292,652.11,650.2,0.561]
[1747001054302,0.28190292,652.1,650.2,0.561]
[1747001054599,0.28190292,652.09,650.2,0.561]
[1747001054795,0.54905271,652.09,650.2,0.561]
[1747001055099,0.28190292,652.08,650.2,0.561]
[1747001055299,1.9816364,651.73,650.2,0.561]
[1747001055800,0.28190292,651.72,650.2,0.561]
[1747001056400,0.28190292,651.71,650.2,0.561]
[1747001057002,0.28190292,651.7,650.2,0.561]
[1747001057200,0.28190292,651.69,650.2,0.561]
[1747001057499,0.28190292,651.68,650.2,0.561]
[1747001058102,1.9816364,651.47,650.2,0.561]
[1747001059997,1.9816364,651.47,649.75,0.26726468]
[1747001060300,0.28217452,651.46,648.62,0.96753523]
[1747001060501,0.28217452,651.46,648.31,0.96753523]
[1747001060909,0.28217452,651.84,648.31,0.96753523]
[1747001061103,0.26743824,651.45,648.32,0.26743824]
[1747001061300,0.28217452,651.84,648.32,0.26743824]
[1747001061500,0.28217452,651.44,648.32,0.26743824]
[1747001061804,0.28217452,651.83,648.32,0.26743824]
[1747001062104,0.28217452,651.82,648.32,0.26743824]
[1747001062405,0.28217452,651.81,648.32,0.26743824]
[1747001062903,0.28217452,651.8,648.32,0.26743824]
[1747001063099,0.28217452,651.8,648.33,0.563]
[1747001063303,0.28217452,651.79,648.33,0.563]
[1747001063804,0.26747216,651.78,648.33,0.563]
[1747001064203,0.28217452,651.77,648.33,0.563]
[1747001065408,1.9816364,651.74,648.33,0.563]
[1747001065705,0.95370979,651.73,648.33,0.563]
[1747001066006,0.28217452,651.72,648.33,0.563]
[1747001066305,0.28217452,651.71,648.33,0.563]
[1747001066505,0.54962098,651.71,648.33,0.563]
[1747001066708,0.30696032,651.55,648.35,0.30847536]
[1747001067007,0.28217452,651.54,648.35,0.30847536]
[1747001067209,1.9816364,651.39,648.36,0.96753523]
[1747001067609,0.28217452,651.38,648.36,0.96753523]
[1747001069110,1.9816364,651.29,648.41,0.96753523]
[1747001070511,0.26747935,651.28,648.41,0.96753523]
[1747001072013,0.26747935,651.28,648.43,0.96753523]
[1747001072307,0.30696032,651.55,648.43,0.96753523]
[1747001072512,0.54969096,651.27,648.43,0.96753523]
[1747001072812,0.28221366,651.26,648.43,0.96753523]
[1747001073215,0.28221366,651.54,648.43,0.96753523]
[1747001073513,0.26748141,651.25,648.43,0.96753523]
[1747001073714,0.28221366,651.24,648.39,0.2674773]
[1747001074111,0.54970843,651.24,648.39,0.2674773]
[1747001074315,0.28221366,651.23,648.39,0.2674773]
[1747001076713,0.26749477,651.24,648.39,0.2674773]
[1747001077014,0.28238572,651.23,648.39,0.2674773]
[1747001077615,0.26749477,651.24,648.39,0.2674773]
[1747001077815,0.28238645,651.23,648.39,0.2674773]
[1747001078216,0.28238645,651.23,648.35,0.30847536]
[1747001078417,0.28238645,651.54,648.35,0.30847536]
[1747001078616,0.26758939,651.22,648.39,0.26758939]
[1747001078813,0.28238645,651.21,648.39,0.26758939]
[1747001079218,0.28238645,651.54,648.39,0.26758939]
[1747001079719,0.26754721,651.53,648.39,0.26758939]
[1747001080018,0.54993366,651.53,648.39,0.26758939]
[1747001080519,0.28238645,651.52,648.39,0.26758939]
[1747001081319,0.28238645,651.52,648.35,0.30847536]
[1747001081517,0.26754927,651.51,648.39,0.26754927]
[1747001081718,0.54993572,651.51,648.39,0.26754927]
[1747001082119,0.28238645,651.5,648.39,0.26754927]
[1747001082417,0.28238645,651.49,648.39,0.26754927]
[1747001082818,0.26754927,651.51,648.39,0.26754927]
[1747001082819,2.26402285,651.48,648.39,0.26754927]
[1747001083114,1.9816364,651.48,648.39,0.26754927]
[1747001083318,0.95335156,651.47,648.39,0.26754927]
[1747001083614,0.28238608,651.46,648.39,0.26754927]
[1747001084017,0.28238608,651.45,648.39,0.26754927]
[1747001084317,0.28238608,651.44,648.39,0.26754927]
[1747001084519,0.28238608,651.44,648.35,0.30847536]
[1747001084719,1.9816364,651.38,648.35,0.30847536]
[1747001085018,0.95335156,651.37,648.35,0.30847536]
[1747001085420,0.28238608,651.36,648.35,0.30847536]
[1747001085621,0.28238608,651.36,648.36,0.26757807]
[1747001085822,0.28238608,651.35,648.36,0.26757807]
[1747001086116,0.28238608,651.37,648.36,0.26757807]
[1747001086322,1.9816364,651.35,648.36,0.26757807]